fUSD/lending_fUSD_20240125
["ID","MTS","AMOUNT","RATE_DAILY","PERIOD"]
[312657920,1706141442248,-1106.34701395,0.000327,2]
[312657921,1706141442258,-1106.34701395,0.000327,2]
[312657922,1706141442269,-1106.34701395,0.000327,2]
[312657923,1706141442278,-1106.34701395,0.000327,2]
[312657924,1706141442289,-1106.34701395,0.000327,2]
[312657925,1706141442299,-1106.34701395,0.000327,2]
[312657926,1706141442310,-1106.34701395,0.000327,2]
[312657927,1706141442320,-1106.34701395,0.000327,2]
[312657928,1706141442329,-1106.34701395,0.000327,2]
[312657929,1706141442339,-1106.34701395,0.000327,2]
[312657931,1706141442348,-1106.34701395,0.000327,2]
[312657933,1706141442357,-1106.34701395,0.000327,2]
[312657935,1706141442366,-1106.34701395,0.000327,2]
[312657937,1706141442376,-1106.34701395,0.000327,2]
[312657940,1706141442386,-1106.34701395,0.000327,2]
[312657942,1706141442395,-1106.34701395,0.000327,2]
[312657945,1706141442404,-1106.34701395,0.000327,2]
[312657946,1706141442414,-1106.34701395,0.000327,2]
[312657947,1706141442423,-1106.34701395,0.000327,2]
[312657949,1706141442433,-176.9,0.00032877,2]
[312657952,1706141442442,-151.3,0.00032877,15]
[312657955,1706141442452,-153.85,0.00032877,2]
[312657958,1706141442461,-465.9429029,0.00032931,2]
[312657960,1706141442470,-52293.8939153,0.00032954,2]
[312657962,1706141442481,-54815.8333333,0.00032977,2]
[312657964,1706141442490,-663.1676119,0.00032977,2]
[312657966,1706141442500,-960.0681322,0.00033,2]
[312657968,1706141442511,-650.0,0.00033,3]
[312657970,1706141442520,-35000.0,0.00033,7]
[312657972,1706141442532,-151.62401116,0.00033488,2]
[312657974,1706141442541,-176.0,0.00033491,2]
[312657976,1706141442550,-728.89908066,0.000335,2]
[312657978,1706141442560,-151.30998428,0.00033629,2]
[312657980,1706141442569,-365.39,0.000338,2]
[312657982,1706141442578,-365.39,0.000338,2]
[312657984,1706141442588,-365.39,0.000338,2]
[312657986,1706141442598,-365.39,0.000338,2]
[312657988,1706141442607,-365.39,0.000338,2]
[312657990,1706141442617,-365.39,0.000338,2]
[312657992,1706141442626,-365.39,0.000338,2]
[312657994,1706141442635,-365.39,0.000338,2]
[312657996,1706141442645,-365.39,0.000338,2]
[312657998,1706141442654,-365.39,0.000338,2]
[312658000,1706141442663,-365.39,0.000338,2]
[312658002,1706141442673,-365.39,0.000338,2]
[312658004,1706141442683,-365.39,0.000338,2]
[312658006,1706141442694,-365.39,0.000338,2]
[312658008,1706141442703,-365.39,0.000338,2]
[312658010,1706141442713,-365.39,0.000338,2]
[312658012,1706141442723,-365.39,0.000338,2]
[312658014,1706141442732,-365.39,0.000338,2]
[312658016,1706141442741,-365.39,0.000338,2]
[312658018,1706141442751,-365.39,0.000338,2]
[312658020,1706141442760,-2270.0,0.00033838,2]
[312658022,1706141442769,-4164.0,0.00033838,2]
[312658024,1706141442779,-2903.0,0.00033838,2]
[312658026,1706141442791,-19682.0,0.00033838,2]
[312658028,1706141442800,-1030.0,0.00033838,2]
[312658030,1706141442810,-394.35,0.00033973,2]
[312658032,1706141442819,-835.0,0.00033974,2]
[312658034,1706141442828,-319.0,0.00033974,2]
[312658036,1706141442838,-1138.0,0.00033974,2]
[312658038,1706141442847,-1000.0,0.00034,4]
[312658040,1706141442857,-6163.10187226,0.00034,2]
[312658042,1706141442866,-2006.0,0.00034,2]
[312658044,1706141442876,-12311.26507226,0.00034,2]
[312658046,1706141442885,-5000.0,0.0003409,2]
[312658048,1706141442894,-153.85,0.00034247,2]
[312658050,1706141442904,-204.0,0.00034461,5]
[312658052,1706141442914,-349.31,0.00034667,2]
[312658054,1706141442923,-151.30998428,0.00034834,2]
[312658056,1706141442932,-1196.18486789,0.000349,2]
[312658058,1706141442942,-1196.18486789,0.000349,2]
[312658060,1706141442952,-1196.18486789,0.000349,2]
[312658062,1706141442961,-1196.18486789,0.000349,2]
[312658064,1706141442971,-1196.18486789,0.000349,2]
[312658066,1706141442980,-1196.18486789,0.000349,2]
[312658068,1706141442989,-1196.18486789,0.000349,2]
[312658070,1706141442999,-1196.18486789,0.000349,2]
[312658072,1706141443008,-1346.28126239,0.000349,2]
[312658074,1706141443017,-1346.28126237,0.000349,2]
[312658076,1706141443027,-1346.28126237,0.000349,2]
[312658078,1706141443039,-1346.28126237,0.000349,2]
[312658080,1706141443049,-1346.28126237,0.000349,2]
[312658082,1706141443058,-59445.88063114,0.000349,2]
[312658084,1706141443068,-200.0,0.00034913,2]
[312658086,1706141443078,-2763.43664,0.0003492,2]
[312658089,1706141443086,-1174.58307198,0.00034966,2]
[312658090,1706141443096,-32136.0,0.00034983,2]
[312658092,1706141443105,-3969.66937994,0.00034997,2]
[312658094,1706141443114,-700.0,0.00035,3]
[312658096,1706141443124,-35000.0,0.00035,14]
[312658098,1706141443133,-267.50502681,0.00035,2]
[312658100,1706141443142,-267.50502681,0.00035,2]
[312658101,1706141443151,-184.58603157,0.00035,2]
[312658102,1706141443160,-22491.31200944,0.00035,2]
[312658103,1706141443169,-22491.31200944,0.00035,2]
[312658105,1706141443180,-200.0,0.00035,5]
[312658107,1706141443189,-2763.43664,0.0003501,2]
[312658109,1706141443198,-2763.43664,0.0003516,2]
[312658111,1706141443207,-200.0,0.00035251,2]
[312658113,1706141443216,-574.19976197,0.00035251,4]
[312658115,1706141443226,-5834.31636989,0.00035251,4]
[312658117,1706141443235,-2000.0,0.00035251,2]
[312658119,1706141443245,-200.0,0.00035251,2]
[312658121,1706141443254,-2763.43664,0.0003532,2]
[312658123,1706141443267,-1174.58307198,0.00035378,2]
[312658126,1706141443276,-2763.43664,0.0003548,2]
[312658129,1706141443288,-168.24796322,0.00035517,2]
[312658132,1706141443299,-434.0,0.0003554,2]
[312658135,1706141443311,-2000.0,0.00035604,2]
[312658137,1706141443320,-200.0,0.00035604,2]
[312658139,1706141443330,-153.85,0.00035616,2]
[312658141,1706141443338,-2763.43664,0.0003563,2]
[312658143,1706141443348,-150.1,0.000359,3]
[312658145,1706141443357,-152.06509082,0.0003591,5]
[312658147,1706141443367,-2000.0,0.0003596,2]
[312658149,1706141443377,-16802.98067918,0.00036,2]
[312658151,1706141443386,-157.0,0.00036,2]
[312658153,1706141443396,-1346.28126237,0.00036025,2]
[312658155,1706141443405,-1196.18486789,0.00036029,2]
[312658157,1706141443414,-151.30998428,0.00036038,2]
[312658158,1706141443423,-204.0,0.00036285,9]
[312658160,1706141443432,-150.1,0.000363,3]
[312658162,1706141443442,-500.0,0.00036706,2]
[312658164,1706141443451,-200.0,0.00036706,2]
[312658166,1706141443460,-349.31,0.00036931,2]
[312658168,1706141443469,-1138.0,0.00036974,2]
[312658170,1706141443478,-153.85,0.00036986,2]
[312658172,1706141443488,-155.44267326,0.00037,7]
[312658175,1706141443498,-750.0,0.00037,3]
[312658177,1706141443507,-151.30998428,0.00037243,2]
[312658178,1706141443517,-150.0,0.00037389,2]
[312658180,1706141443526,-157.0,0.00037397,2]
[312658182,1706141443537,-150.0,0.00037405,2]
[312658184,1706141443546,-150.0,0.00037413,2]
[312658197,1706141443623,-150.0,0.00037433,2]
[312658200,1706141443633,-150.0,0.00037456,2]
[312658203,1706141443642,-150.0,0.00037459,2]
[312658206,1706141443651,-150.0,0.00037468,2]
[312658209,1706141443660,-150.0,0.00037485,2]
[312658212,1706141443669,-186.18267257,0.00037488,2]
[312658214,1706141443677,-300.0,0.00037495,2]
[312658216,1706141443686,-1500.0,0.00037511,2]
[312658218,1706141443695,-150.0,0.00037514,2]
[312658220,1706141443704,-150.0,0.00037517,2]
[312658222,1706141443713,-150.0,0.00037527,2]
[312658224,1706141443722,-150.0,0.00037534,2]
[312658226,1706141443732,-1500.0,0.00037536,2]
[312658228,1706141443742,-1500.0,0.00037539,2]
[312658230,1706141443751,-150.0,0.00037541,2]
[312658232,1706141443761,-150.0,0.00037541,2]
[312658234,1706141443770,-1500.0,0.00037548,2]
[312658236,1706141443779,-249.61918585,0.00037549,2]
[312658238,1706141443788,-150.0,0.0003755,2]
[312658240,1706141443797,-150.0,0.00037554,2]
[312658242,1706141443806,-150.0,0.00037558,2]
[312658244,1706141443814,-150.0,0.0003756,2]
[312658246,1706141443823,-150.0,0.00037562,2]
[312658248,1706141443832,-1500.0,0.00037562,2]
[312658250,1706141443841,-300.0,0.00037572,2]
[312658252,1706141443854,-150.0,0.00037578,2]
[312658254,1706141443863,-150.0,0.00037583,2]
[312658256,1706141443872,-300.0,0.00037586,2]
[312658258,1706141443881,-150.0,0.00037596,2]
[312658260,1706141443891,-150.0,0.00037596,2]
[312658262,1706141443901,-306.60094349,0.00037601,2]
[312658264,1706141443910,-1196.18486789,0.00037607,2]
[312658266,1706141443919,-500.0,0.00037609,2]
[312658268,1706141443928,-200.0,0.00037609,2]
[312658270,1706141443937,-300.0,0.00037622,2]
[312658271,1706141443946,-6856.45314807,0.00037625,2]
[312658272,1706141443954,-150.0,0.00037625,2]
[312658273,1706141443963,-150.0,0.00037626,2]
[312658275,1706141443973,-150.0,0.00037634,2]
[312658277,1706141443982,-1500.0,0.00037635,2]
[312658279,1706141443991,-150.0,0.0003764,2]
[312658281,1706141444002,-150.0,0.00037642,2]
[312658283,1706141444012,-1500.0,0.00037643,2]
[312658285,1706141444022,-150.0,0.00037647,2]
[312658287,1706141444032,-1500.0,0.00037648,2]
[312658290,1706141444042,-150.0,0.00037659,2]
[312658291,1706141444051,-153.44242513,0.00037667,2]
[312658294,1706141444062,-150.0,0.00037669,2]
[312658296,1706141444072,-293.29955994,0.0003767,2]
[312658298,1706141444081,-152.71432783,0.00037679,2]
[312658300,1706141444090,-150.0,0.0003768,2]
[312658302,1706141444099,-150.0,0.0003768,2]
[312658304,1706141444108,-150.0,0.00037681,2]
[312658306,1706141444118,-300.0,0.00037683,2]
[312658308,1706141444127,-150.0,0.00037686,2]
[312658309,1706141444135,-150.0,0.00037686,2]
[312658310,1706141444145,-150.0,0.00037691,2]
[312658311,1706141444154,-150.0,0.00037694,2]
[312658312,1706141444163,-150.0,0.00037695,2]
[312658313,1706141444173,-150.0,0.00037698,2]
[312658314,1706141444182,-1500.0,0.00037714,2]
[312658315,1706141444190,-150.0,0.00037714,2]
[312658316,1706141444199,-150.0,0.00037716,2]
[312658317,1706141444208,-150.0,0.00037718,2]
[312658318,1706141444218,-150.0,0.0003772,2]
[312658319,1706141444227,-150.0,0.00037722,2]
[312658320,1706141444235,-150.0,0.00037722,2]
[312658321,1706141444245,-150.0,0.00037724,2]
[312658322,1706141444255,-150.0,0.00037724,2]
[312658323,1706141444267,-1500.0,0.00037725,2]
[312658324,1706141444277,-225.78938323,0.00037726,2]
[312658325,1706141444288,-300.0,0.00037728,2]
[312658326,1706141444297,-150.0,0.00037736,2]
[312658327,1706141444309,-150.0,0.00037737,2]
[312658328,1706141444318,-150.0,0.00037739,2]
[312658329,1706141444327,-150.0,0.00037743,2]
[312658330,1706141444337,-1500.0,0.00037743,2]
[312658331,1706141444348,-150.0,0.00037749,2]
[312658332,1706141444359,-150.0,0.0003775,2]
[312658333,1706141444368,-150.0,0.00037751,2]
[312658334,1706141444377,-150.0,0.00037754,2]
[312658335,1706141444386,-150.0,0.00037756,2]
[312658336,1706141444395,-150.0,0.00037761,2]
[312658337,1706141444405,-150.0,0.00037763,2]
[312658338,1706141444414,-150.0,0.00037764,2]
[312658339,1706141444423,-150.0,0.00037772,2]
[312658340,1706141444432,-150.0,0.00037774,2]
[312658341,1706141444441,-1500.0,0.00037777,2]
[312658342,1706141444449,-150.0,0.00037781,2]
[312658343,1706141444458,-150.0,0.00037782,2]
[312658344,1706141444467,-300.0,0.00037782,2]
[312658345,1706141444476,-1500.0,0.00037784,2]
[312658346,1706141444485,-150.0,0.00037785,2]
[312658347,1706141444494,-1500.0,0.00037787,2]
[312658348,1706141444504,-1500.0,0.00037788,2]
[312658349,1706141444513,-150.0,0.0003779,2]
[312658350,1706141444522,-150.0,0.00037795,2]
[312658351,1706141444532,-150.0,0.00037795,2]
[312658352,1706141444542,-448.1943707,0.00037796,2]
[312658353,1706141444550,-300.0,0.000378,2]
[312658354,1706141444560,-8004.592983,0.000378,2]
[312658355,1706141444570,-150.0,0.00037802,2]
[312658356,1706141444580,-50647.6895488,0.00037806,2]
[312658357,1706141444589,-1010.76224635,0.00037807,2]
[312658358,1706141444598,-1777.53,0.00037808,2]
[312658359,1706141444607,-1510.23,0.00037808,2]
[312658360,1706141444616,-150.0,0.00037813,2]
[312658361,1706141444625,-150.0,0.00037813,2]
[312658362,1706141444634,-1500.0,0.00037813,2]
[312658363,1706141444642,-150.0,0.00037816,2]
[312658364,1706141444653,-150.0,0.00037817,2]
[312658365,1706141444662,-52283.2350666,0.00037822,2]
[312658366,1706141444671,-7924.7319746,0.00037822,2]
[312658367,1706141444680,-253.4560527,0.00037822,2]
[312658368,1706141444689,-150.0,0.00037826,2]
[312658369,1706141444698,-150.0,0.00037827,2]
[312658370,1706141444707,-150.0,0.00037829,2]
[312658371,1706141444716,-150.0,0.00037829,2]
[312658372,1706141444725,-1500.0,0.0003783,2]
[312658373,1706141444734,-150.0,0.00037831,2]
[312658374,1706141444743,-150.0,0.00037832,2]
[312658375,1706141444752,-150.0,0.00037832,2]
[312658376,1706141444761,-54815.8333333,0.00037832,2]
[312658377,1706141444770,-663.1676119,0.00037832,2]
[312658378,1706141444779,-150.0,0.00037836,2]
[312658379,1706141444789,-150.0,0.00037842,2]
[312658380,1706141444798,-150.0,0.00037845,2]
[312658381,1706141444807,-49001.4851822,0.00037848,2]
[312658382,1706141444816,-150.0,0.00037849,2]
[312658383,1706141444825,-300.0,0.00037853,2]
[312658384,1706141444834,-150.0,0.00037856,2]
[312658385,1706141444842,-150.0,0.00037856,2]
[312658386,1706141444851,-150.0,0.0003786,2]
[312658387,1706141444860,-150.0,0.00037862,2]
[312658388,1706141444869,-201.47634239,0.00037863,8]
[312658389,1706141444878,-1500.0,0.00037863,2]
[312658390,1706141444888,-150.0,0.00037864,2]
[312658391,1706141444899,-1500.0,0.00037865,2]
[312658392,1706141444908,-150.0,0.00037873,2]
[312658393,1706141444917,-150.0,0.00037873,2]
[312658394,1706141444927,-150.0,0.00037874,2]
[312658395,1706141444936,-150.0,0.00037874,2]
[312658396,1706141444945,-150.0,0.00037874,2]
[312658397,1706141444955,-52853.6281333,0.00037874,2]
[312658398,1706141444964,-52568.4316,0.00037874,2]
[312658399,1706141444973,-7924.7319746,0.00037874,2]
[312658400,1706141444982,-7924.7319746,0.00037874,2]
[312658401,1706141444991,-253.4560527,0.00037874,2]
[312658402,1706141445000,-253.4560527,0.00037874,2]
[312658403,1706141445009,-54815.8333333,0.00037874,2]
[312658404,1706141445019,-54815.8333333,0.00037874,2]
[312658405,1706141445028,-663.1676119,0.00037874,2]
[312658406,1706141445038,-663.1676119,0.00037874,2]
[312658407,1706141445061,-47355.2808157,0.00037874,2]
[312658408,1706141445070,-412.6973062,0.00037874,2]
[312658409,1706141445079,-430.4458385,0.00037874,2]
[312658410,1706141445088,-150.0,0.00037875,2]
[312658411,1706141445097,-150.0,0.0003788,2]
[312658412,1706141445106,-150.0,0.00037881,2]
[312658413,1706141445116,-300.0,0.00037883,2]
[312658414,1706141445125,-150.0,0.00037886,2]
[312658415,1706141445134,-150.0,0.00037892,2]
[312658416,1706141445143,-150.0,0.00037892,2]
[312658417,1706141445152,-150.0,0.00037893,2]
[312658418,1706141445161,-150.0,0.00037893,2]
[312658419,1706141445170,-150.0,0.00037894,2]
[312658420,1706141445179,-150.0,0.00037896,2]
[312658421,1706141445189,-307.40170157,0.00037897,2]
[312658422,1706141445197,-3969.66937994,0.00037897,2]
[312658423,1706141445207,-171.63288693,0.00037898,4]
[312658424,1706141445216,-228.31791619,0.00037898,4]
[312658425,1706141445225,-160.72539687,0.00037898,4]
[312658426,1706141445235,-418.13504044,0.00037898,4]
[312658427,1706141445246,-233.83533973,0.00037898,4]
[312658428,1706141445257,-394.35,0.00037899,2]
[312658429,1706141445268,-394.35,0.00037899,2]
[312658430,1706141445277,-394.35,0.00037899,2]
[312658431,1706141445287,-574.259676,0.000379,2]
[312658432,1706141445297,-700.0,0.000379,13]
[312658433,1706141445307,-400.0,0.000379,13]
[312658434,1706141445317,-698371.245869,0.000379,3]
[312658435,1706141445326,-22491.31200944,0.000379,2]
[312658436,1706141445335,-200.0,0.000379,13]
[312658437,1706141445346,-572.4253,0.000379,2]
[312658438,1706141445355,-271.48297066,0.00037901,2]
[312658439,1706141445364,-150.0,0.00037906,2]
[312658440,1706141445374,-1500.0,0.00037909,2]
[312658441,1706141445384,-3762.43,0.0003791,2]
[312658442,1706141445393,-3762.43,0.0003791,2]
[312658443,1706141445402,-3762.43,0.0003791,2]
[312658444,1706141445410,-3762.43,0.0003791,2]
[312658445,1706141445420,-3762.43,0.0003791,2]
[312658446,1706141445429,-3762.43,0.0003791,2]
[312658447,1706141445437,-3762.43,0.0003791,2]
[312658448,1706141445446,-3762.43,0.0003791,2]
[312658449,1706141445455,-3762.43,0.0003791,2]
[312658450,1706141445465,-3762.43,0.0003791,2]
[312658451,1706141445475,-150.0,0.0003791,2]
[312658452,1706141445484,-394.35,0.0003791,2]
[312658453,1706141445494,-150.0,0.0003791,2]
[312658454,1706141445503,-150.0,0.0003791,2]
[312658455,1706141445513,-150.0,0.00037911,2]
[312658456,1706141445522,-1500.0,0.00037911,2]
[312658457,1706141445533,-53138.8246666,0.00037911,2]
[312658458,1706141445542,-7924.7319746,0.00037911,2]
[312658459,1706141445551,-253.4560527,0.00037911,2]
[312658460,1706141445560,-54815.8333333,0.00037911,2]
[312658461,1706141445569,-663.1676119,0.00037911,2]
[312658462,1706141445578,-45709.0764491,0.00037911,2]
[312658463,1706141445588,-394.948774,0.00037911,2]
[312658464,1706141445597,-150.01,0.00037912,2]
[312658465,1706141445606,-3300.30698936,0.00037912,2]
[312658466,1706141445615,-150.0,0.00037912,2]
[312658467,1706141445624,-1500.0,0.00037912,2]
[312658468,1706141445632,-150.0,0.00037913,2]
[312658469,1706141445642,-150.0,0.00037913,2]
[312658470,1706141445651,-150.0,0.00037923,2]
[312658471,1706141445661,-343.0867113,0.00037938,4]
[312658472,1706141445670,-100000.0,0.00038,28]
[312658473,1706141445679,-4000.0,0.00038,2]
[312658474,1706141445688,-365.39,0.000381,3]
[312658475,1706141445697,-365.39,0.000381,3]
[312658476,1706141445708,-365.39,0.000381,3]
[312658477,1706141445717,-365.39,0.000381,3]
[312658478,1706141445728,-365.39,0.000381,3]
[312658479,1706141445740,-365.39,0.000381,3]
[312658480,1706141445750,-365.39,0.000381,3]
[312658481,1706141445761,-365.39,0.000381,3]
[312658482,1706141445770,-365.39,0.000381,3]
[312658483,1706141445779,-365.39,0.000381,3]
[312658484,1706141445790,-365.39,0.000381,3]
[312658485,1706141445799,-365.39,0.000381,3]
[312658486,1706141445808,-365.39,0.000381,3]
[312658487,1706141445817,-365.39,0.000381,3]
[312658488,1706141445825,-365.39,0.000381,3]
[312658489,1706141445835,-365.39,0.000381,3]
[312658490,1706141445844,-365.39,0.000381,3]
[312658491,1706141445853,-365.39,0.000381,3]
[312658492,1706141445862,-365.39,0.000381,3]
[312658493,1706141445871,-365.39,0.000381,3]
[312658494,1706141445880,-204.0,0.0003811,13]
[312658495,1706141445889,-153.85,0.00038356,2]
[312658496,1706141445898,-150.0,0.00038356,2]
[312658497,1706141445906,-151.30998428,0.00038447,2]
[312658498,1706141445916,-5437.0,0.00038515,30]
[312658499,1706141445924,-5437.0,0.00038515,60]
[312658500,1706141445933,-1346.28126237,0.0003865,8]
[312658501,1706141445942,-1000.0,0.000387,7]
[312658502,1706141445951,-151.3,0.00038748,15]
[312658504,1706141445960,-4530.0,0.00038848,30]
[312658506,1706141445969,-4530.0,0.00038848,60]
[312658507,1706141445978,-253.70604876,0.0003888,2]
[312658508,1706141445987,-253.70604875,0.0003888,2]
[312658509,1706141445996,-300.0,0.000389,14]
[312658510,1706141446005,-282.21761447,0.0003898,2]
[312658511,1706141446015,-3969.66937994,0.00038997,2]
[312658512,1706141446024,-394.35,0.00038999,2]
[312658513,1706141446034,-100000.0,0.00039,29]
[312658514,1706141446042,-976.71698119,0.00039,4]
[312658515,1706141446051,-620.63088492,0.00039,4]
[312658516,1706141446060,-2042.60313175,0.00039,2]
[312658517,1706141446070,-701.03904126,0.00039,10]
[312658518,1706141446079,-1281.58,0.00039,2]
[312658519,1706141446089,-800.0,0.00039,3]
[312658520,1706141446099,-175.0,0.00039099,2]
[312658521,1706141446109,-150.0,0.00039153,2]
[312658522,1706141446118,-150.0,0.00039153,2]
[312658523,1706141446129,-3624.0,0.00039182,30]
[312658524,1706141446138,-3624.0,0.00039182,60]
[312658525,1706141446148,-1196.18486789,0.00039186,2]
[312658526,1706141446158,-349.31,0.00039194,2]
[312658527,1706141446168,-425.85403806,0.00039234,31]
[312658528,1706141446177,-200.0,0.0003926,2]
[312658529,1706141446188,-150.0,0.00039366,2]
[312658530,1706141446198,-203.0,0.00039478,16]
[312658531,1706141446208,-490.28334114,0.000395,4]
[312658532,1706141446217,-1000.0,0.000395,7]
[312658533,1706141446227,-2718.0,0.00039515,30]
[312658534,1706141446236,-2718.0,0.00039515,60]
[312658535,1706141446246,-154.9447501,0.00039515,30]
[312658536,1706141446255,-2527.0034118,0.00039649,11]
[312658537,1706141446266,-2527.00341178,0.00039649,11]
[312658538,1706141446275,-2527.00341178,0.00039649,11]
[312658539,1706141446285,-2527.00341178,0.00039649,11]
[312658540,1706141446294,-2527.00341178,0.00039649,11]
[312658541,1706141446303,-2527.00341178,0.00039649,11]
[312658542,1706141446315,-151.30998428,0.00039651,5]
[312658543,1706141446324,-153.85,0.00039726,2]
[312658544,1706141446333,-204.0,0.00039934,17]
[312658545,1706141446342,-1138.0,0.00039974,2]
[312658546,1706141446351,-394.35,0.00039999,2]
[312658547,1706141446360,-100000.0,0.0004,30]
[312658548,1706141446369,-155.0,0.0004,2]
[312658549,1706141446378,-6292.64215048,0.0004,4]
[312658550,1706141446388,-1586.12682901,0.0004,4]
[312658551,1706141446398,-1084.9827743,0.0004,4]
[312658552,1706141446407,-2271.20743593,0.0004,4]
[312658553,1706141446416,-2680.34949408,0.0004,4]
[312658554,1706141446426,-22041.80226571,0.0004,4]
[312658555,1706141446435,-155.0,0.0004,4]
[312658556,1706141446444,-54308.42779317,0.0004,4]
[312658557,1706141446453,-569.51987199,0.0004,4]
[312658558,1706141446462,-155.0,0.0004,4]
[312658559,1706141446471,-589.73,0.0004,14]
[312658560,1706141446480,-225.0,0.0004,2]
[312658561,1706141446489,-1000.0,0.000401,32]
[312658562,1706141446499,-164.05,0.00040232,2]
[312658563,1706141446508,-155.53007045,0.000403,4]
[312658564,1706141446517,-394.35,0.00040365,2]
[312658565,1706141446526,-394.35,0.00040365,2]
[312658566,1706141446537,-150.0,0.00040375,2]
[312658567,1706141446547,-150.0,0.00040378,4]
[312658568,1706141446555,-150.0,0.00040395,3]
[312658569,1706141446564,-150.0,0.00040395,3]
[312658570,1706141446574,-3646.0,0.0004059,2]
[312658571,1706141446582,-3238.0,0.0004059,2]
[312658572,1706141446592,-165492.12440477,0.00040693,2]
[312658573,1706141446601,-16094.1026113,0.00040693,2]
[312658574,1706141446610,-12826.97236766,0.00040693,2]
[312658575,1706141446618,-1210.0,0.00040693,2]
[312658576,1706141446628,-2110.37399375,0.00040693,2]
[312658577,1706141446637,-332.93074713,0.00040693,2]
[312658578,1706141446646,-2875.98180632,0.00040693,2]
[312658579,1706141446655,-5771.7071198,0.00040693,2]
[312658580,1706141446664,-1454.33775154,0.00040693,2]
[312658581,1706141446673,-7051.85693084,0.00040693,2]
[312658582,1706141446681,-2614.89577375,0.00040693,2]
[312658583,1706141446690,-2347.65959539,0.00040693,2]
[312658584,1706141446699,-2555.40485242,0.00040693,2]
[312658585,1706141446708,-131426.98205836,0.00040693,2]
[312658586,1706141446717,-3107.77198084,0.00040693,2]
[312658587,1706141446726,-166.67515127,0.00040693,2]
[312658588,1706141446735,-9967.25024252,0.00040693,2]
[312658589,1706141446744,-3024.45777182,0.00040693,2]
[312658590,1706141446753,-3646.45423983,0.00040693,2]
[312658591,1706141446763,-14470.6735737,0.00040693,2]
[312658592,1706141446771,-580.72269828,0.00040693,2]
[312658593,1706141446780,-1022.16786611,0.00040693,2]
[312658594,1706141446791,-4037.28327805,0.00040693,20]
[312658595,1706141446801,-314.0,0.00040693,31]
[312658596,1706141446810,-3776.23920253,0.00040693,2]
[312658597,1706141446819,-46942.18117914,0.00040693,120]
[312658598,1706141446829,-1500.0,0.00040693,4]
[312658599,1706141446838,-206.90837598,0.00040693,120]
[312658600,1706141446847,-1790.050849,0.00040693,30]
[312658601,1706141446855,-150.0,0.00040693,30]
[312658602,1706141446865,-10933.28072686,0.000407,2]
[312658603,1706141446874,-200.0,0.00040733,2]
[312658604,1706141446883,-1196.18486789,0.00040765,5]
[312658605,1706141446892,-2527.00341178,0.00040827,13]
[312658606,1706141446901,-151.30998428,0.00040856,9]
[312658607,1706141446910,-394.35,0.00040999,2]
[312658608,1706141446920,-394.35,0.00040999,2]
[312658609,1706141446930,-394.35,0.00040999,2]
[312658610,1706141446939,-394.35,0.00040999,2]
[312658611,1706141446948,-394.56217631,0.00040999,2]
[312658612,1706141446958,-100000.0,0.00041,31]
[312658613,1706141446967,-800.0,0.00041,2]
[312658614,1706141446976,-3444.44324304,0.00041,4]
[312658615,1706141446985,-850.0,0.00041,3]
[312658616,1706141446995,-161.0,0.00041,14]
[312658617,1706141447003,-151.0,0.00041096,14]
[312658618,1706141447013,-151.0,0.00041096,14]
[312658619,1706141447023,-151.0,0.00041096,14]